Workbook

Sheet Лист1
A2: № | B2: ДАТА | C2: НОМЕР | D2: ДОП НОМЕР | E2: ПОЗИЦИЯ | F2: НАЗВАНИЕ
A3: 1 | B3: 2024-07-30 | C3: A2 | E3: =IF($D3="","",COUNTIF($D$3:D3,$D3)) ->  | F3: Название
A4: =A3+1 -> 2 | B4: 2024-07-30 | C4: A5 | E4: =IF($D4="","",COUNTIF($D$3:D4,$D4)) ->  | F4: Стул
A5: 3 | B5: 2024-07-30 | C5: A1-1 | D5: A1 | E5: =IF($D5="","",COUNTIF($D$3:D5,$D5)) -> 1 | F5: Название
A6: 4 | B6: 2024-07-30 | C6: A3-1 | D6: A3 | E6: =IF($D6="","",COUNTIF($D$3:D6,$D6)) -> 1 | F6: Название
A7: 5 | B7: 2024-07-30 | C7: A3-2 | D7: A3 | E7: =IF($D7="","",COUNTIF($D$3:D7,$D7)) -> 2 | F7: Название
A8: 6 | B8: 2024-08-06 | C8: A4-1 | D8: A4 | E8: =IF($D8="","",COUNTIF($D$3:D8,$D8)) -> 1 | F8: Название
A9: 7 | B9: 2024-08-06 | C9: A4-2 | D9: A4 | E9: =IF($D9="","",COUNTIF($D$3:D9,$D9)) -> 2 | F9: Название
A10: 8 | B10: 2024-08-06 | C10: A4-3 | D10: A4 | E10: =IF($D10="","",COUNTIF($D$3:D10,$D10)) -> 3 | F10: Название
A11: 9 | B11: 2024-08-06 | C11: A6 | E11: =IF($D11="","",COUNTIF($D$3:D11,$D11)) ->  | F11: Название
A12: 10 | B12: 2024-08-06 | C12: A7 | E12: =IF($D12="","",COUNTIF($D$3:D12,$D12)) -> 
A13: 11 | B13: 2024-08-06 | C13: A8 | E13: =IF($D13="","",COUNTIF($D$3:D13,$D13)) -> 
A14: 12 | B14: 2024-08-06 | C14: A9 | E14: =IF($D14="","",COUNTIF($D$3:D14,$D14)) -> 
A15: 13 | B15: 2024-08-07 | C15: A10 | E15: =IF($D15="","",COUNTIF($D$3:D15,$D15)) -> 
A16: 14 | B16: 2024-08-08 | C16: A11 | E16: =IF($D16="","",COUNTIF($D$3:D16,$D16)) -> 
A17: 15 | B17: 2024-08-09 | C17: A12
A18: 16 | B18: 2024-08-10 | C18: A13
A19: 17 | B19: 2024-08-11 | C19: A14
A20: 18 | B20: 2024-08-12 | C20: A15
A21: 19 | B21: 2024-08-13 | C21: A16
A22: 20 | B22: 2024-08-14 | C22: A17
A23: 21 | B23: 2024-08-15 | C23: A18
A24: 22 | B24: 2024-08-16 | C24: A19
A25: 23 | B25: 2024-08-17 | C25: A20
A26: 24 | B26: 2024-08-18 | C26: A21
A27: 25 | B27: 2024-08-19 | C27: A22
A28: 26 | B28: 2024-08-20 | C28: A23
A29: 27 | B29: 2024-08-21 | C29: A24
A30: 28 | B30: 2024-08-22 | C30: A25
A31: 29 | B31: 2024-08-23 | C31: A26
A32: 30 | B32: 2024-08-24 | C32: A27
A33: 31 | B33: 2024-08-25 | C33: A28
A34: 32 | B34: 2024-08-26 | C34: A29
A35: 33 | B35: 2024-08-27 | C35: A30
A36: 34 | B36: 2024-08-28 | C36: A31
A37: 35 | B37: 2024-08-29 | C37: A32
A38: 36 | B38: 2024-08-30 | C38: A33
A39: 37 | B39: 2024-08-31 | C39: A34
A40: 38 | B40: 2024-09-01 | C40: A35
A41: 39 | B41: 2024-09-02 | C41: A36
A42: 40 | B42: 2024-09-03 | C42: A37
A43: 41 | B43: 2024-09-04 | C43: A38
A44: 42 | B44: 2024-09-05 | C44: A39
A45: 43 | B45: 2024-09-06 | C45: A40
A46: 44 | B46: 2024-09-07 | C46: A41
A47: 45 | B47: 2024-09-08 | C47: A42
A48: 46 | B48: 2024-09-09 | C48: A43
A49: 47 | B49: 2024-09-10 | C49: A44
A50: 48 | B50: 2024-09-11 | C50: A45
A51: 49 | B51: 2024-09-12 | C51: A46
A52: 50 | B52: 2024-09-13 | C52: A47
A53: 51 | B53: 2024-09-14 | C53: A48
A54: 52 | B54: 2024-09-15 | C54: A49
A55: 53 | B55: 2024-09-16 | C55: A50
A56: 54 | B56: 2024-09-17 | C56: A51
A57: 55 | B57: 2024-09-18 | C57: A52
A58: 56 | B58: 2024-09-19 | C58: A53
A59: 57 | B59: 2024-09-20 | C59: A54
A60: 58 | B60: 2024-09-21 | C60: A55
A61: 59 | B61: 2024-09-22 | C61: A56
A62: 60 | B62: 2024-09-23 | C62: A57
A63: 61 | B63: 2024-09-24 | C63: A58
A64: 62 | B64: 2024-09-25 | C64: A59
A65: 63 | B65: 2024-09-26 | C65: A60
A66: 64 | B66: 2024-09-27 | C66: A61
A67: 65 | B67: 2024-09-28 | C67: A62
A68: =A67+1 -> 66 | B68: 2024-09-29 | C68: A63
A69: 67 | B69: 2024-09-30 | C69: A64
A70: 68 | B70: 2024-10-01 | C70: A65
A71: 69 | B71: 2024-10-02 | C71: A66
A72: 70 | B72: 2024-10-03 | C72: A67
A73: 71 | B73: 2024-10-04 | C73: A68
A74: 72 | B74: 2024-10-05 | C74: A69
A75: 73 | B75: 2024-10-06 | C75: A70
A76: 74 | B76: 2024-10-07 | C76: A71
A77: 75 | B77: 2024-10-08 | C77: A72
A78: 76 | B78: 2024-10-09 | C78: A73
A79: 77 | B79: 2024-10-10 | C79: A74
A80: 78 | B80: 2024-10-11 | C80: A75
A81: 79 | B81: 2024-10-12 | C81: A76
A82: 80 | B82: 2024-10-13 | C82: A77
A83: 81 | B83: 2024-10-14 | C83: A78
A84: 82 | B84: 2024-10-15 | C84: A79
A85: 83 | B85: 2024-10-16 | C85: A80
A86: 84 | B86: 2024-10-17 | C86: A81
A87: 85 | B87: 2024-10-18 | C87: A82
A88: 86 | B88: 2024-10-19 | C88: A83
A89: 87 | B89: 2024-10-20 | C89: A84
A90: 88 | B90: 2024-10-21 | C90: A85
A91: 89 | B91: 2024-10-22 | C91: A86
A92: 90 | B92: 2024-10-23 | C92: A87
A93: 91 | B93: 2024-10-24 | C93: A88
A94: 92 | B94: 2024-10-25 | C94: A89
A95: 93 | B95: 2024-10-26 | C95: A90
A96: 94 | B96: 2024-10-27 | C96: A91
A97: 95 | B97: 2024-10-28 | C97: A92
A98: 96 | B98: 2024-10-29 | C98: A93
A99: 97 | B99: 2024-10-30 | C99: A94
A100: 98 | B100: 2024-10-31 | C100: A95
A101: =A100+1 -> 99 | B101: 2024-11-01 | C101: A96
A102: 100 | B102: 2024-11-02 | C102: A97
A103: 101 | B103: 2024-11-03 | C103: A98
A104: 102 | B104: 2024-11-04 | C104: A99
A105: 103 | B105: 2024-11-05 | C105: A100
A106: 104 | B106: 2024-11-06 | C106: A101
A107: 105 | B107: 2024-11-07 | C107: A102
A108: 106 | B108: 2024-11-08 | C108: A103
A109: 107 | B109: 2024-11-09 | C109: A104
A110: 108 | B110: 2024-11-10 | C110: A105
A111: 109 | B111: 2024-11-11 | C111: A106
A112: 110 | B112: 2024-11-12 | C112: A107
A113: 111 | B113: 2024-11-13 | C113: A108
A114: 112 | B114: 2024-11-14 | C114: A109
A115: 113 | B115: 2024-11-15 | C115: A110
A116: 114 | B116: 2024-11-16 | C116: A111
A117: 115 | B117: 2024-11-17 | C117: A112
A118: 116 | B118: 2024-11-18 | C118: A113
A119: 117 | B119: 2024-11-19 | C119: A114
A120: 118 | B120: 2024-11-20 | C120: A115
A121: 119 | B121: 2024-11-21 | C121: A116
A122: 120 | B122: 2024-11-22 | C122: A117
A123: 121 | B123: 2024-11-23 | C123: A118
A124: 122 | B124: 2024-11-24 | C124: A119
A125: 123 | B125: 2024-11-25 | C125: A120
A126: 124 | B126: 2024-11-26 | C126: A121
A127: 125 | B127: 2024-11-27 | C127: A122
A128: 126 | B128: 2024-11-28 | C128: A123
A129: 127 | B129: 2024-11-29 | C129: A124
A130: 128 | B130: 2024-11-30 | C130: A125
A131: 129 | B131: 2024-12-01 | C131: A126
A132: 130 | B132: 2024-12-02 | C132: A127
A133: 131 | B133: 2024-12-03 | C133: A128
A134: 132 | B134: 2024-12-04 | C134: A129
A135: 133 | B135: 2024-12-05 | C135: A130
A136: 134 | B136: 2024-12-06 | C136: A131
A137: 135 | B137: 2024-12-07 | C137: A132
A138: 136 | B138: 2024-12-08 | C138: A133
A139: 137 | B139: 2024-12-09 | C139: A134
A140: 138 | B140: 2024-12-10 | C140: A135
A141: 139 | B141: 2024-12-11 | C141: A136
A142: 140 | B142: 2024-12-12 | C142: A137
A143: 141 | B143: 2024-12-13 | C143: A138
A144: 142 | B144: 2024-12-14 | C144: A139
A145: 143 | B145: 2024-12-15 | C145: A140
A146: 144 | B146: 2024-12-16 | C146: A141
A147: 145 | B147: 2024-12-17 | C147: A142
A148: 146 | B148: 2024-12-18 | C148: A143
A149: 147 | B149: 2024-12-19 | C149: A144
A150: 148 | B150: 2024-12-20 | C150: A145
A151: 149 | B151: 2024-12-21 | C151: A146
A152: 150 | B152: 2024-12-22 | C152: A147
A153: 151 | B153: 2024-12-23 | C153: A148
A154: 152 | B154: 2024-12-24 | C154: A149
A155: 153 | B155: 2024-12-25 | C155: A150
A156: 154 | B156: 2024-12-26 | C156: A151
A157: 155 | B157: 2024-12-27 | C157: A152
A158: 156 | B158: 2024-12-28 | C158: A153
A159: 157 | B159: 2024-12-29 | C159: A154
A160: 158 | B160: 2024-12-30 | C160: A155
A161: 159 | B161: 2024-12-31 | C161: A156
A162: 160 | B162: 2025-01-01 | C162: A157
A163: 161 | B163: 2025-01-02 | C163: A158
A164: 162 | B164: 2025-01-03 | C164: A159
A165: =A164+1 -> 163 | B165: 2025-01-04 | C165: A160
A166: 164 | B166: 2025-01-05 | C166: A161
A167: 165 | B167: 2025-01-06 | C167: A162
A168: 166 | B168: 2025-01-07 | C168: A163
A169: 167 | B169: 2025-01-08 | C169: A164
A170: 168 | B170: 2025-01-09 | C170: A165
A171: 169 | B171: 2025-01-10 | C171: A166
A172: 170 | B172: 2025-01-11 | C172: A167
A173: 171 | B173: 2025-01-12 | C173: A168
A174: 172 | B174: 2025-01-13 | C174: A169
A175: 173 | B175: 2025-01-14 | C175: A170
A176: 174 | B176: 2025-01-15 | C176: A171
A177: 175 | B177: 2025-01-16 | C177: A172
A178: 176 | B178: 2025-01-17 | C178: A173
A179: 177 | B179: 2025-01-18 | C179: A174
A180: 178 | B180: 2025-01-19 | C180: A175
A181: 179 | B181: 2025-01-20 | C181: A176
A182: 180 | B182: 2025-01-21 | C182: A177
A183: 181 | B183: 2025-01-22 | C183: A178
A184: 182 | B184: 2025-01-23 | C184: A179
A185: 183 | B185: 2025-01-24 | C185: A180
A186: 184 | B186: 2025-01-25 | C186: A181
A187: 185 | B187: 2025-01-26 | C187: A182
A188: 186 | B188: 2025-01-27 | C188: A183
A189: 187 | B189: 2025-01-28 | C189: A184
A190: 188 | B190: 2025-01-29 | C190: A185
A191: 189 | B191: 2025-01-30 | C191: A186
A192: 190 | B192: 2025-01-31 | C192: A187
A193: 191 | B193: 2025-02-01 | C193: A188
A194: 192 | B194: 2025-02-02 | C194: A189
A195: 193 | B195: 2025-02-03 | C195: A190
A196: 194 | B196: 2025-02-04 | C196: A191
A197: 195 | B197: 2025-02-05 | C197: A192
A198: 196 | B198: 2025-02-06 | C198: A193
A199: 197 | B199: 2025-02-07 | C199: A194
A200: 198 | B200: 2025-02-08 | C200: A195
A201: 199 | B201: 2025-02-09 | C201: A196
... 1388 more rows
